bitfinex/quotes_BTCUSD_20211001
["timestamp","ask_amount","ask_price","bid_price","bid_amount"]
[1633111011433,0.02846702,47609.0,47608.0,0.03439906]
[1633111011830,0.02846702,47609.0,47608.0,0.0186]
[1633111012029,0.06246702,47609.0,47608.0,0.0236]
[1633111013428,0.02846702,47609.0,47608.0,0.0186]
[1633111014228,0.06146702,47609.0,47608.0,0.0236]
[1633111015831,0.06146702,47609.0,47608.0,0.005]
[1633111016029,0.24393705,47606.0,47605.0,0.31076279]
[1633111016230,0.24393705,47606.0,47603.0,0.0186]
[1633111016429,0.24402107,47606.0,47603.0,0.0186]
[1633111016630,6.002e-05,47604.0,47603.0,0.0186]
[1633111016830,2e-08,47604.0,47603.0,0.0186]
[1633111018231,0.01500002,47604.0,47603.0,0.0486]
[1633111018632,0.01500002,47604.0,47603.0,0.3327933]
[1633111018833,0.01500002,47604.0,47603.0,0.47130158]
[1633111019032,0.01500002,47604.0,47603.0,0.18788832]
[1633111019232,0.01500002,47604.0,47603.0,0.0486]
[1633111019434,0.01500002,47604.0,47603.0,0.0186]
[1633111019634,2e-08,47604.0,47603.0,0.0186]
[1633111019834,2e-08,47604.0,47603.0,0.1579759]
[1633111020034,2e-08,47604.0,47603.0,0.0186]
[1633111020233,0.01300002,47604.0,47603.0,0.0496]
[1633111021034,0.01300002,47604.0,47603.0,0.10924361]
[1633111021235,0.01300002,47604.0,47603.0,0.0496]
[1633111021636,2e-08,47604.0,47603.0,0.0186]
[1633111022036,2e-08,47604.0,47603.0,0.03440949]
[1633111022238,0.00900002,47604.0,47603.0,0.06740949]
[1633111023443,2e-08,47604.0,47603.0,0.03440949]
[1633111024039,2e-08,47604.0,47603.0,0.37454889]
[1633111024240,0.00800002,47604.0,47603.0,0.49022455]
[1633111024638,0.00800002,47604.0,47603.0,0.20965195]
[1633111025040,0.00800002,47604.0,47603.0,0.21018205]
[1633111025240,0.00800002,47604.0,47603.0,0.20965195]
[1633111025839,2e-08,47604.0,47603.0,0.17465195]
[1633111026240,2e-08,47604.0,47603.0,0.15308515]
[1633111026441,2e-08,47604.0,47603.0,0.21265392]
[1633111026839,2e-08,47604.0,47603.0,0.21264838]
[1633111027044,2e-08,47604.0,47603.0,0.07240949]
[1633111027643,2e-08,47604.0,47603.0,0.03440949]
[1633111028040,2e-08,47604.0,47603.0,0.17824887]
[1633111028244,2e-08,47604.0,47603.0,0.15774134]
[1633111029645,2e-08,47604.0,47603.0,0.17870521]
[1633111029848,2e-08,47604.0,47603.0,0.11927144]
[1633111030047,2e-08,47604.0,47603.0,0.11874134]
[1633111030248,2e-08,47604.0,47603.0,0.15574134]
[1633111030449,2e-08,47604.0,47603.0,0.15627144]
[1633111030852,2e-08,47604.0,47603.0,0.27531852]
[1633111031449,2e-08,47604.0,47603.0,0.23831852]
[1633111032310,2e-08,47604.0,47603.0,0.27531852]
[1633111033454,2e-08,47604.0,47603.0,0.23831852]
[1633111033855,2e-08,47604.0,47603.0,0.11927144]
[1633111034251,0.00200002,47604.0,47603.0,0.15427144]
[1633111035656,2e-08,47604.0,47603.0,0.11927144]
[1633111036059,0.17797835,47606.0,47603.0,0.11927144]
[1633111036255,0.17797835,47606.0,47605.0,0.11909469]
[1633111036456,0.17797835,47606.0,47605.0,0.11962479]
[1633111036654,0.17797835,47606.0,47605.0,0.2045798]
[1633111036856,0.08086482,47611.0,47605.0,0.2045798]
[1633111037057,0.08086482,47611.0,47609.0,0.05955057]
[1633111037256,0.08086482,47611.0,47610.0,0.14499086]
[1633111037457,0.08086482,47611.0,47610.0,0.12999086]
[1633111037857,0.28336153,47611.0,47610.0,0.12999086]
[1633111038060,0.028347,47610.0,47605.0,0.03221899]
[1633111038322,0.31936153,47611.0,47605.0,0.03221899]
[1633111038661,0.31936153,47611.0,47606.0,0.01795805]
[1633111039661,0.28336153,47611.0,47606.0,0.01795805]
[1633111039861,0.28336153,47611.0,47608.0,0.00123725]
[1633111040062,0.28336153,47611.0,47608.0,0.10123725]
[1633111040261,6.001e-05,47609.0,47608.0,0.10123725]
[1633111041063,0.00012408,47609.0,47608.0,0.10123725]
[1633111042267,0.04312408,47609.0,47608.0,0.10123725]
[1633111042867,0.04312408,47609.0,47608.0,0.1]
[1633111043667,0.00012408,47609.0,47608.0,0.1]
[1633111043869,0.02847108,47609.0,47608.0,0.1]
[1633111044067,0.00012408,47609.0,47608.0,0.11795698]
[1633111044266,0.04212408,47609.0,47608.0,0.11495698]
[1633111045667,0.00012408,47609.0,47608.0,0.11495698]
[1633111046269,0.03012408,47609.0,47608.0,0.13795698]
[1633111047872,0.00012408,47609.0,47608.0,0.11495698]
[1633111048070,0.00012408,47609.0,47608.0,0.097]
[1633111048270,0.02812408,47609.0,47608.0,0.123]
[1633111048874,0.11548658,47609.0,47608.0,0.123]
[1633111049673,0.08748658,47609.0,47608.0,0.11495698]
[1633111050336,0.03012408,47609.0,47608.0,0.13595698]
[1633111051276,0.02727544,47609.0,47608.0,0.13595698]
[1633111051678,0.20249671,47611.0,47608.0,0.11495698]
[1633111051879,0.028347,47610.0,47608.0,0.11495698]
[1633111052275,0.028347,47610.0,47608.0,0.13395698]
[1633111053077,0.028347,47610.0,47609.0,0.06370265]
[1633111054281,0.058347,47610.0,47609.0,0.07970265]
[1633111055078,0.058347,47610.0,47609.0,0.0976575]
[1633111055681,0.028347,47610.0,47609.0,0.0816575]
[1633111055878,0.20249671,47611.0,47609.0,0.0816575]
[1633111056079,0.20249671,47611.0,47610.0,0.06369351]
[1633111056350,0.23084371,47611.0,47610.0,0.06369351]
[1633111056884,0.23084371,47611.0,47609.0,0.03395485]
[1633111057078,0.028347,47610.0,47609.0,0.03395485]
[1633111057279,0.028347,47610.0,47609.0,0.09764603]
[1633111057680,0.028347,47610.0,47609.0,0.08164603]
[1633111058280,0.068347,47610.0,47609.0,0.08164603]
[1633111058883,0.068347,47610.0,47609.0,0.06369118]
[1633111059681,0.028347,47610.0,47609.0,0.06369118]
[1633111060280,0.065347,47610.0,47609.0,0.06369118]
[1633111060684,0.065347,47610.0,47609.0,0.08164603]
[1633111061682,0.028347,47610.0,47609.0,0.08164603]
[1633111062345,0.033,47610.0,47609.0,0.09764603]
[1633111063681,0.20249671,47611.0,47609.0,0.08164603]
[1633111063884,0.20249671,47611.0,47610.0,0.0589055]
[1633111064284,0.24249671,47611.0,47609.0,0.05890961]
[1633111065689,0.20249671,47611.0,47609.0,0.05890961]
[1633111065886,0.314972,47613.0,47609.0,0.05890961]
[1633111066086,0.314972,47613.0,47610.0,0.30359524]
[1633111066287,0.314972,47613.0,47611.0,0.05891927]
[1633111066688,0.00128871,47614.0,47611.0,0.05891927]
[1633111066886,0.038,47615.0,47611.0,0.05891927]
[1633111067085,0.19350403,47614.0,47611.0,0.05891927]
[1633111067289,0.19350403,47614.0,47613.0,0.1]
[1633111067487,0.19350403,47614.0,47613.0,0.15890657]
[1633111067687,0.19356404,47614.0,47613.0,0.1]
[1633111068362,0.22856404,47614.0,47613.0,0.1]
[1633111069688,0.19356404,47614.0,47613.0,0.1]
[1633111069892,0.19356404,47614.0,47613.0,0.09913]
[1633111070490,0.22756404,47614.0,47613.0,0.11213]
[1633111071695,0.19356404,47614.0,47613.0,0.11707633]
[1633111072495,0.22756404,47614.0,47613.0,0.13007633]
[1633111073694,0.19356404,47614.0,47613.0,0.11707633]
[1633111074497,0.22856404,47614.0,47613.0,0.09913]
[1633111074695,0.22369215,47614.0,47613.0,0.09913]
[1633111075694,0.18869215,47614.0,47613.0,0.09913]
[1633111076496,0.22469215,47614.0,47613.0,0.11013]
[1633111077097,0.22469215,47614.0,47613.0,0.12807633]
[1633111077900,0.18869215,47614.0,47613.0,0.11707633]
[1633111078500,0.22769215,47614.0,47613.0,0.11707633]
[1633111079703,0.18869215,47614.0,47613.0,0.11707633]
[1633111080103,0.18869215,47614.0,47613.0,0.09913]
[1633111080503,0.22669215,47614.0,47613.0,0.09913]
[1633111081904,0.18869215,47614.0,47613.0,0.09913]
[1633111082505,0.22769215,47614.0,47613.0,0.09913]
[1633111082705,0.22769215,47614.0,47613.0,0.11707633]
[1633111083511,0.22269215,47614.0,47613.0,0.11707633]
[1633111084107,0.18369215,47614.0,47613.0,0.11707633]
[1633111084508,0.21869215,47614.0,47613.0,0.13207633]
[1633111085310,0.21869215,47614.0,47613.0,0.11780506]
[1633111085710,0.18369215,47614.0,47613.0,0.10280506]
[1633111086512,0.22069215,47614.0,47613.0,0.10880506]
[1633111087612,0.59203946,47614.0,47613.0,0.10880506]
[1633111087814,0.58338646,47614.0,47613.0,0.10280506]
[1633111088214,0.58338646,47614.0,47613.0,0.12139172]
[1633111088215,0.58467769,47614.0,47613.0,0.12139172]
[1633111088416,0.62167769,47614.0,47613.0,0.12139172]
[1633111089817,0.21333038,47614.0,47613.0,0.12139172]
[1633111090418,0.24433038,47614.0,47613.0,0.12139172]
[1633111090819,0.24433038,47614.0,47613.0,0.10280506]
[1633111091821,0.21333038,47614.0,47613.0,0.10280506]
[1633111092619,0.24539246,47614.0,47613.0,0.10280506]
[1633111093623,0.24539246,47614.0,47613.0,0.12139172]
[1633111093822,0.21339246,47614.0,47613.0,0.12139172]
[1633111094626,0.24539246,47614.0,47613.0,0.12139172]
[1633111095484,0.24539246,47614.0,47613.0,0.11879172]
[1633111095887,0.21339246,47614.0,47613.0,0.11879172]
[1633111096085,0.21339246,47614.0,47613.0,0.10020506]
[1633111096485,0.24539246,47614.0,47613.0,0.10020506]
[1633111097888,0.21339246,47614.0,47613.0,0.10020506]
[1633111098519,0.24539246,47614.0,47613.0,0.10020506]
[1633111099115,0.24539246,47614.0,47613.0,0.11879172]
[1633111099917,0.21339246,47614.0,47613.0,0.11879172]
[1633111100516,0.24539246,47614.0,47613.0,0.11879172]
[1633111101119,0.18801295,47614.0,47613.0,0.11879172]
[1633111101516,0.00923609,47614.0,47613.0,0.11879172]
[1633111101717,0.00923609,47614.0,47613.0,0.10020506]
[1633111102517,0.04123609,47614.0,47613.0,0.10020506]
[1633111103725,0.04123609,47614.0,47613.0,0.88020506]
[1633111103920,0.04123609,47614.0,47613.0,0.14958429]
[1633111104121,0.00122314,47614.0,47613.0,0.44146293]
[1633111104387,0.038,47615.0,47613.0,0.44146293]
[1633111104523,0.038,47615.0,47614.0,0.3790888]
[1633111104720,0.038,47615.0,47614.0,0.3976888]
[1633111104921,0.038,47615.0,47614.0,1.14133084]
[1633111105121,0.038,47615.0,47614.0,1.25712431]
[1633111105324,0.0008,47618.0,47616.0,0.00126316]
[1633111105521,0.0008,47618.0,47617.0,0.61300272]
[1633111105722,0.0008,47618.0,47617.0,2.02575606]
[1633111106121,0.0008,47618.0,47617.0,2.24895606]
[1633111106725,0.0248,47618.0,47617.0,2.39755457]
[1633111106924,0.0248,47618.0,47617.0,2.27895606]
[1633111107122,0.0248,47618.0,47617.0,1.55020017]
[1633111107924,0.0008,47618.0,47617.0,2.02020017]
[1633111108523,0.0008,47618.0,47617.0,2.05120017]
[1633111109926,0.0008,47618.0,47617.0,2.05330354]
[1633111110127,0.0008,47618.0,47617.0,2.04088878]
[1633111110393,0.0004,47618.0,47617.0,2.04088878]
[1633111110526,0.0006,47625.0,47617.0,2.34088878]
[1633111110728,0.0006,47625.0,47623.0,0.66402415]
[1633111110926,0.0006,47625.0,47624.0,0.52822664]
[1633111111531,0.87335209,47635.0,47624.0,0.52822664]
[1633111111733,0.87335209,47635.0,47625.0,0.08365531]
[1633111111932,0.0005301,47633.0,47626.0,0.0186]
[1633111112128,0.09990938,47634.0,47626.0,0.0186]
[1633111112329,0.0011301,47634.0,47626.0,0.0186]
[1633111112730,0.0116,47634.0,47631.0,0.28744986]
[1633111112929,0.0116,47634.0,47632.0,0.33525929]
[1633111113391,0.0116,47634.0,47633.0,0.14403275]
[1633111113530,0.0116,47634.0,47633.0,0.48811537]
[1633111113732,0.00023992,47634.0,47633.0,0.48811537]
[1633111113933,0.00023992,47634.0,47633.0,0.34408262]
[1633111114533,9.37422803,47638.0,47633.0,0.34408262]
[1633111114534,9.37359795,47638.0,47633.0,0.34408262]
[1633111114830,9.37359795,47638.0,47633.0,0.36908262]
[1633111115231,0.0005301,47637.0,47633.0,0.36908262]
[1633111115432,0.01727557,47632.0,47629.0,0.32537899]
[1633111115634,0.0005301,47631.0,47630.0,0.0186]
[1633111116034,0.01727557,47632.0,47630.0,0.0186]
[1633111116639,0.01727557,47632.0,47630.0,0.0346]
[1633111116640,0.04327557,47632.0,47630.0,0.0346]
[1633111117035,0.04327557,47632.0,47631.0,0.17383339]
[1633111117233,0.04327557,47632.0,47631.0,0.19243339]
[1633111118034,0.01727557,47632.0,47631.0,0.19243339]
[1633111118234,0.01727557,47632.0,47631.0,0.0186]
[1633111118638,0.04027557,47632.0,47631.0,0.0376]
[1633111119636,0.04027557,47632.0,47631.0,0.04124192]
[1633111120035,0.04027557,47632.0,47631.0,0.02224192]
[1633111120036,0.01727557,47632.0,47631.0,0.02224192]
[1633111120736,0.01727557,47632.0,47631.0,0.03724192]
[1633111121137,0.01727557,47632.0,47631.0,0.05582177]
[1633111122137,0.01727557,47632.0,47631.0,0.04082177]
[1633111122799,0.01727557,47632.0,47631.0,0.06282177]
[1633111124202,0.01727557,47632.0,47631.0,0.04082177]
[1633111124406,0.16631108,47633.0,47631.0,0.04082177]
[1633111124602,0.16631108,47633.0,47631.0,0.05682177]
[1633111125005,2.40179434,47632.0,47631.0,0.016]
[1633111125203,0.15165675,47632.0,47631.0,0.016]
[1633111125421,0.15045229,47632.0,47631.0,0.016]
[1633111125602,1.55045229,47632.0,47631.0,0.016]
[1633111126002,1.55045229,47632.0,47619.0,0.72148119]
[1633111126205,0.20996,47624.0,47619.0,0.5184]
[1633111126602,0.20996,47624.0,47623.0,0.00010799]
[1633111126803,0.22696,47624.0,47623.0,0.00010799]
[1633111127203,0.45904475,47624.0,47623.0,0.00010799]
[1633111127404,0.77397975,47624.0,47623.0,0.00010799]
[1633111127607,0.45904475,47624.0,47623.0,0.00010799]
[1633111128008,0.44204475,47624.0,47623.0,0.00010799]
[1633111128804,0.46104475,47624.0,47623.0,0.02610799]
[1633111130211,0.44204475,47624.0,47623.0,0.00010799]
[1633111130407,0.4489772,47624.0,47623.0,0.00010799]
[1633111130606,0.2268932,47624.0,47623.0,0.00010799]
[1633111130807,0.2558932,47624.0,47623.0,0.02510799]
[1633111131005,0.2564233,47624.0,47623.0,0.02510799]
[1633111131209,0.25894244,47624.0,47623.0,0.02510799]
[1633111131417,0.88648244,47624.0,47623.0,0.02510799]
[1633111131807,1.04122244,47624.0,47623.0,0.02510799]
[1633111132211,0.66715634,47624.0,47623.0,0.01271174]
[1633111132409,1.26715634,47624.0,47623.0,0.01271174]
[1633111132808,0.70015634,47624.0,47623.0,0.01671174]
[1633111133413,1.10015634,47624.0,47623.0,0.01671174]
[1633111133610,1.10022103,47624.0,47623.0,0.01671174]
[1633111134011,0.70022103,47624.0,47623.0,0.01671174]
[1633111134211,0.66722103,47624.0,47623.0,0.01271174]
[1633111134409,1.11722103,47624.0,47623.0,0.01271174]
[1633111134816,1.14922103,47624.0,47623.0,0.01271174]
[1633111135212,0.69922103,47624.0,47623.0,0.01271174]
[1633111135812,0.69922103,47624.0,47623.0,0.00010799]
[1633111136012,0.70520034,47624.0,47623.0,0.00010799]
[1633111136211,0.67320034,47624.0,47623.0,0.00010799]
[1633111136412,0.51846034,47624.0,47623.0,0.00010799]
[1633111136813,0.55046034,47624.0,47623.0,0.00010799]
[1633111137613,0.54448103,47624.0,47623.0,0.01271174]
[1633111138113,0.51248103,47624.0,47623.0,0.01271174]
[1633111138713,0.54448103,47624.0,47623.0,0.01271174]
[1633111140118,0.51248103,47624.0,47623.0,0.01271174]
[1633111140723,0.54548103,47624.0,47623.0,0.01271174]
[1633111140921,0.46794103,47624.0,47623.0,0.01271174]
[1633111141319,0.46794103,47624.0,47623.0,0.00010799]
[1633111141520,0.47392037,47624.0,47623.0,0.00010799]
[1633111142119,0.44039027,47624.0,47623.0,0.00010799]
[1633111142523,0.42539027,47624.0,47623.0,0.00010799]
[1633111142723,0.45839027,47624.0,47623.0,0.00010799]
[1633111143122,0.45241093,47624.0,47623.0,0.00010799]
[1633111143322,0.45241093,47624.0,47623.0,0.01271174]
[1633111144122,0.41941093,47624.0,47623.0,0.01271174]
[1633111144326,0.1963114,47624.0,47623.0,0.01271174]
[1633111144526,0.1963114,47624.0,47623.0,0.01512396]
[1633111145130,0.1963114,47624.0,47623.0,0.01425396]
[1633111145527,0.1963114,47624.0,47623.0,0.03285396]
[1633111146730,0.1963114,47624.0,47623.0,0.05685396]
[1633111146928,0.20051278,47624.0,47623.0,0.04425021]
[1633111147734,0.20051278,47624.0,47623.0,0.04390933]
[1633111148131,0.20051278,47624.0,47623.0,0.01990933]
[1633111148632,0.1963114,47624.0,47623.0,0.03467032]
[1633111148834,0.1963114,47624.0,47623.0,0.05867032]
[1633111149432,0.15895649,47624.0,47623.0,0.05867032]
[1633111149635,6.469e-05,47624.0,47623.0,0.05867032]
[1633111149836,6.469e-05,47624.0,47623.0,0.20201263]
[1633111150036,6.469e-05,47624.0,47623.0,0.1426943]
[1633111150244,6.469e-05,47624.0,47623.0,0.1186943]
[1633111150635,6.469e-05,47624.0,47623.0,0.65207281]
[1633111150836,6.469e-05,47624.0,47623.0,0.68207281]
[1633111151036,6.469e-05,47624.0,47623.0,0.89863281]
[1633111152037,6.469e-05,47624.0,47623.0,0.86863281]
[1633111152439,0.00420704,47624.0,47623.0,0.85387182]
[1633111152642,0.00420704,47624.0,47623.0,0.54369331]
[1633111152841,0.00420704,47624.0,47623.0,0.57369331]
[1633111153441,0.00420704,47624.0,47623.0,0.85611051]
[1633111153742,0.00420704,47624.0,47623.0,0.97583538]
[1633111153939,0.00420704,47624.0,47623.0,0.85738849]
[1633111154140,4.69e-06,47624.0,47623.0,0.85738849]
[1633111154341,9.0,47638.0,47623.0,0.94581644]
[1633111154541,0.24576681,47636.0,47630.0,0.32843187]
[1633111154742,0.24576681,47636.0,47631.0,0.30699341]
[1633111154940,9.0,47638.0,47631.0,0.47555059]
[1633111155944,0.24227684,47633.0,47631.0,0.47555059]
[1633111156544,0.24227684,47633.0,47631.0,0.18715718]
[1633111156742,0.24227684,47633.0,47631.0,0.22515718]
[1633111157341,0.24227684,47633.0,47631.0,0.0566]
[1633111157946,0.24227684,47633.0,47627.0,0.15754028]
[1633111158143,0.00421732,47632.0,47628.0,0.0186]
[1633111158542,0.07096478,47631.0,47628.0,0.0186]
[1633111158744,0.00421732,47632.0,47628.0,0.0576]
[1633111159145,0.00474742,47632.0,47628.0,0.0576]
[1633111159343,0.00421732,47632.0,47628.0,0.0576]
[1633111159543,0.24227684,47633.0,47628.0,0.0576]
[1633111159745,0.24227684,47633.0,47629.0,0.01474627]
[1633111159943,0.24227684,47633.0,47630.0,0.0186]
[1633111160547,0.55765594,47633.0,47630.0,0.0186]
[1633111160745,0.24280694,47633.0,47630.0,0.0606]
[1633111160948,0.0005301,47632.0,47630.0,0.0606]
[1633111161416,0.0005301,47632.0,47630.0,0.042]
[1633111161847,0.314862,47631.0,47630.0,0.042]
[1633111162245,0.314862,47631.0,47629.0,0.01474627]
[1633111162246,0.3153921,47631.0,47629.0,0.01474627]
[1633111162645,0.0005301,47630.0,47629.0,0.01474627]
[1633111162849,0.0005301,47630.0,47629.0,0.04474627]
[1633111163650,0.00474279,47630.0,47629.0,0.03]
[1633111163846,0.00421269,47630.0,47629.0,0.03]
[1633111164046,0.00474279,47630.0,47629.0,0.03]
[1633111164248,0.00474279,47630.0,47623.0,0.00010799]
[1633111164446,0.0790279,47628.0,47623.0,0.00010799]
[1633111164847,0.0790279,47628.0,47623.0,0.03010799]
[1633111165046,0.07908879,47628.0,47623.0,0.03010799]
[1633111165250,0.07908879,47628.0,47624.0,0.01475533]
[1633111166049,0.26796846,47627.0,47624.0,0.01475533]
[1633111166249,0.07908879,47628.0,47624.0,0.01475533]
[1633111166448,0.0005301,47627.0,47626.0,7.199e-05]
[1633111166648,0.07961889,47628.0,47626.0,7.199e-05]
[1633111166848,0.10461889,47628.0,47626.0,7.199e-05]
[1633111167251,0.10408879,47628.0,47626.0,7.199e-05]
[1633111168051,0.07908879,47628.0,47626.0,7.199e-05]
[1633111168258,2.51830102,47627.0,47626.0,7.199e-05]
[1633111168454,0.26883112,47627.0,47626.0,7.199e-05]
[1633111168650,0.0005301,47627.0,47626.0,7.199e-05]
[1633111168851,1.226,47627.0,47626.0,0.02907199]
[1633111169251,0.03020712,47627.0,47626.0,0.02907199]
[1633111170054,0.00420712,47627.0,47626.0,7.199e-05]
[1633111170652,0.39376196,47628.0,47626.0,0.01482619]
[1633111170856,0.39376196,47628.0,47626.0,0.04382619]
[1633111170857,0.676,47627.0,47626.0,0.04382619]
[1633111171051,0.026,47627.0,47626.0,0.04382619]
[1633111172253,0.39376196,47628.0,47626.0,0.01482619]
[1633111172852,0.41976196,47628.0,47626.0,0.04382619]
[1633111173255,0.34093489,47628.0,47626.0,0.04382619]
[1633111174125,0.31493489,47628.0,47626.0,0.01482619]
[1633111174524,0.31493489,47628.0,47626.0,7.199e-05]
[1633111174922,0.34414391,47628.0,47626.0,0.03007199]
[1633111175923,0.34414391,47628.0,47626.0,0.16553687]
[1633111176126,0.31493489,47628.0,47627.0,0.01475193]
[1633111176925,0.30844141,47628.0,47627.0,0.04475193]
[1633111177325,0.30844141,47628.0,47627.0,0.18041983]
[1633111178127,0.28344141,47628.0,47627.0,0.15041983]
[1633111178328,0.36827177,47628.0,47627.0,0.15041983]
[1633111178929,0.39327177,47628.0,47627.0,0.18903926]
[1633111179329,0.30844141,47628.0,47627.0,0.18903926]
[1633111180332,0.28344141,47628.0,47627.0,0.14428733]
[1633111180531,0.2876514,47628.0,47627.0,0.14428492]
[1633111180731,0.2876514,47628.0,47627.0,0.0595766]
[1633111180931,0.3126514,47628.0,47627.0,0.0895766]
[1633111181133,0.3126514,47628.0,47627.0,0.17429181]
[1633111181636,0.30844141,47628.0,47627.0,0.17429181]
[1633111182231,0.28344141,47628.0,47627.0,0.14429181]
[1633111182433,0.28344141,47628.0,47627.0,0.0595766]
[1633111182632,0.28344141,47628.0,47627.0,0.004264]
[1633111182833,0.28344141,47628.0,47627.0,0.09383775]
[1633111182834,0.30844141,47628.0,47627.0,0.09383775]
[1633111183032,0.30844141,47628.0,47627.0,0.17855076]
[1633111184041,0.30844141,47628.0,47627.0,0.034264]
[1633111184236,0.28344141,47628.0,47627.0,0.004264]
[1633111184838,0.30844141,47628.0,47627.0,0.033264]
[1633111185035,0.30844141,47628.0,47627.0,0.09288184]
[1633111185537,0.30844141,47628.0,47627.0,0.11804229]
[1633111185945,0.31265143,47628.0,47627.0,0.11804229]
[1633111186138,0.28765143,47628.0,47627.0,0.06389439]
[1633111186339,0.28765143,47628.0,47627.0,0.14868814]
[1633111186937,0.31265143,47628.0,47627.0,0.17768814]
[1633111187138,0.30844141,47628.0,47627.0,0.17768814]
[1633111187342,0.30844141,47628.0,47627.0,0.11805775]
[1633111187739,0.025,47628.0,47627.0,0.11805775]
[1633111187941,0.025,47628.0,47627.0,0.41762786]
[1633111188140,0.025,47628.0,47627.0,0.13665775]
[1633111188342,0.025,47628.0,47627.0,0.25591564]
[1633111188540,0.025,47628.0,47627.0,0.25592778]
[1633111188740,0.209916,47630.0,47627.0,0.22692778]
[1633111188942,0.209916,47630.0,47627.0,0.17313403]
[1633111188943,0.021,47628.0,47627.0,0.17313403]
[1633111189343,0.021,47628.0,47627.0,0.053864]
[1633111189544,0.021,47628.0,47627.0,0.17326976]
[1633111189844,0.31487,47628.0,47627.0,0.004264]
[1633111190842,0.33987,47628.0,47627.0,0.034264]
[1633111191544,0.34408006,47628.0,47627.0,0.034264]
[1633111192343,0.31908006,47628.0,47627.0,0.004264]
[1633111192743,0.31487,47628.0,47627.0,0.004264]
[1633111192942,0.34087,47628.0,47627.0,0.033264]
[1633111194349,0.31487,47628.0,47627.0,0.004264]
[1633111194948,0.34087,47628.0,47627.0,0.033264]
[1633111196747,0.34087,47628.0,47627.0,0.030354]
[1633111196950,0.33987,47628.0,47627.0,0.029]
[1633111197751,0.025,47628.0,47627.0,0.14841792]
[1633111198350,0.40783513,47631.0,47627.0,0.11941792]
[1633111198551,0.20990639,47631.0,47628.0,0.1193988]
[1633111198750,0.00122566,47635.0,47629.0,0.11937142]
[1633111198952,0.022,47631.0,47630.0,0.39450702]
[1633111199150,0.022,47631.0,47630.0,0.11934491]
[1633111199350,0.022,47631.0,47629.0,0.11931125]
[1633111199554,0.23927738,47630.0,47628.0,0.13795197]
[1633111199751,0.23927738,47630.0,47628.0,0.0186]
[1633111200148,0.10155988,47631.0,47628.0,0.0186]
[1633111200431,0.08563988,47631.0,47628.0,0.0186]
[1633111200550,0.209901,47632.0,47628.0,0.13809422]
[1633111200952,0.026,47631.0,47628.0,0.16609422]
[1633111201152,0.026,47631.0,47629.0,0.33895703]
[1633111201354,0.026,47631.0,47630.0,0.41452162]
[1633111201553,0.026,47631.0,47630.0,0.367391]
[1633111201751,0.026,47631.0,47630.0,0.3668609]
[1633111201953,0.01849357,47631.0,47630.0,0.09218952]
[1633111202353,9.209863,47638.0,47630.0,0.09218952]
[1633111202554,9.41972986,47638.0,47631.0,0.27909725]
[1633111202753,9.41972986,47638.0,47632.0,0.0186]
[1633111202955,9.43472986,47638.0,47632.0,0.0186]
[1633111203419,0.21239402,47634.0,47632.0,0.0186]
[1633111203957,0.21239402,47634.0,47633.0,0.0939438]
[1633111204155,9.43472986,47638.0,47633.0,0.1125438]
[1633111204358,0.25336849,47631.0,47629.0,0.1193742]
[1633111204557,0.08385511,47629.0,47626.0,0.11955401]
[1633111204758,0.08385511,47629.0,47626.0,7.199e-05]
[1633111204954,0.39873811,47629.0,47626.0,7.199e-05]
[1633111205155,0.22028035,47627.0,47626.0,7.199e-05]
[1633111205954,0.53516735,47627.0,47626.0,7.199e-05]
[1633111206956,0.53516735,47627.0,47626.0,0.03007199]
[1633111206957,0.55916735,47627.0,47626.0,0.03007199]
[1633111207156,0.24428035,47627.0,47626.0,0.03007199]
[1633111208161,0.59711143,47627.0,47622.0,0.11954625]
[1633111208359,0.59711143,47627.0,47619.0,0.1196324]
[1633111208360,0.12076217,47623.0,47619.0,0.1196324]
[1633111208560,0.29244648,47622.0,47618.0,0.11965428]
[1633111208761,0.41240648,47622.0,47616.0,0.11969714]
[1633111208961,0.22099701,47616.0,47615.0,0.038]
[1633111209161,1.01438197,47616.0,47615.0,0.038]
[1633111209430,1.01438197,47616.0,47615.0,0.03813201]
[1633111209967,0.99808385,47616.0,47615.0,0.03813201]
[1633111210962,1.02808385,47616.0,47615.0,0.06313201]
[1633111211163,1.13808385,47616.0,47615.0,0.06313201]
[1633111211764,1.13687142,47616.0,47615.0,0.06313201]
[1633111212363,1.10687142,47616.0,47615.0,0.03813201]
[1633111212765,2.4,47615.0,47607.0,0.11980243]
[1633111212967,0.00121429,47610.0,47604.0,0.11976712]
[1633111213165,0.00123052,47605.0,47604.0,0.11976712]
[1633111213367,0.2148723,47604.0,47603.0,0.11978893]
[1633111213565,0.52490198,47604.0,47600.0,0.11990458]
[1633111213765,0.52490198,47604.0,47603.0,0.00014405]
[1633111213966,0.2148723,47604.0,47603.0,0.00014405]
[1633111214165,0.2148723,47604.0,47603.0,0.00070486]
[1633111214565,0.5299633,47604.0,47603.0,0.00070486]
[1633111214766,0.2684623,47604.0,47603.0,0.00070486]
[1633111214966,0.2954623,47604.0,47603.0,0.02870486]
[1633111216367,0.2684623,47604.0,47603.0,0.00070486]
[1633111216965,0.2684623,47604.0,47603.0,0.02970486]
[1633111216966,0.2934623,47604.0,47603.0,0.02970486]
[1633111218366,0.2684623,47604.0,47603.0,0.00070486]
[1633111218968,0.2934623,47604.0,47603.0,0.02970486]
[1633111220371,0.2684623,47604.0,47603.0,0.00070486]
[1633111220568,0.05359,47604.0,47603.0,0.00070486]
[1633111220969,0.07659,47604.0,47603.0,0.03070486]
[1633111221437,0.07659,47604.0,47598.0,0.07549589]
[1633111221438,9.09670156,47592.0,47590.0,0.00129694]
[1633111221570,9.14263257,47592.0,47591.0,0.66627498]
[1633111221770,9.14263257,47592.0,47591.0,0.66764878]
[1633111221970,9.14263257,47592.0,47591.0,0.58830741]
[1633111222168,9.14263257,47592.0,47591.0,0.53665741]
[1633111222767,9.14263257,47592.0,47591.0,0.86531756]
[1633111222971,9.16663257,47592.0,47591.0,0.89731756]
[1633111224442,9.14263257,47592.0,47591.0,0.86531756]
[1633111224970,9.16663257,47592.0,47591.0,0.89731756]
[1633111225170,9.16663257,47592.0,47591.0,0.52266269]
[1633111225871,9.16663257,47592.0,47591.0,0.52391106]
[1633111226074,9.16663257,47592.0,47591.0,0.64272812]
[1633111226471,9.14263257,47592.0,47591.0,0.61072812]
[1633111226678,9.14263257,47592.0,47591.0,0.62772033]
[1633111227075,9.16563257,47592.0,47591.0,0.66072033]
[1633111227474,9.16323469,47592.0,47591.0,0.66072033]
[1633111228475,9.14023469,47592.0,47591.0,0.62772033]
[1633111229075,9.14023469,47592.0,47591.0,0.65872033]
[1633111229076,9.16423469,47592.0,47591.0,0.65872033]
[1633111229479,9.16423469,47592.0,47591.0,0.43552033]
[1633111231342,8.85974838,47592.0,47591.0,0.43552033]